bitfinex/quotes_ETHUSD_20250131
["timestamp","ask_amount","ask_price","bid_price","bid_amount"]
[1738350866648,0.7752,3328.0,3326.7,0.35392963]
[1738350866847,0.7752,3327.8,3326.3,3.5392963]
[1738350867250,0.7752,3327.8,3326.4,3.0]
[1738350867459,0.7752,3327.8,3326.3,3.5392963]
[1738350868446,0.7853,3327.6,3326.4,3.0]
[1738350868613,0.8324,3327.8,3326.1,0.61546971]
[1738350868815,0.8324,3327.7,3326.1,0.61546971]
[1738350869249,0.03757144,3327.9,3326.1,0.61546971]
[1738350869250,0.03757135,3327.6,3326.1,0.61546971]
[1738350869451,0.03757135,3327.6,3325.9,3.5392963]
[1738350869452,0.86997135,3327.6,3325.9,3.5392963]
[1738350870225,0.8324,3327.6,3326.0,3.0]
[1738350870433,0.8324,3327.6,3326.1,0.65392963]
[1738350870838,0.86997418,3327.6,3326.1,0.65392963]
[1738350871856,0.754,3327.4,3326.1,0.27935156]
[1738350872056,0.7604,3327.2,3326.1,0.27935156]
[1738350872255,1.3179,3327.0,3326.1,0.27935156]
[1738350872455,0.7604,3326.9,3326.1,0.27935156]
[1738350872669,0.7604,3326.9,3325.7,0.27935156]
[1738350872847,0.7604,3326.9,3325.7,0.96121635]
[1738350873421,0.774,3327.1,3325.7,0.96121635]
[1738350873622,0.7605,3326.9,3325.7,0.27935156]
[1738350874046,0.7605,3326.9,3325.6,3.27935156]
[1738350875163,0.7605,3326.9,3325.7,0.27935156]
[1738350876623,0.7605,3326.9,3326.0,3.0]
[1738350876847,0.7605,3326.9,3325.8,0.27935156]
[1738350877072,0.7605,3326.9,3325.8,0.60728672]
[1738350877525,0.8259,3326.8,3325.8,0.27935156]
[1738350877922,0.8259,3326.8,3325.7,0.27935156]
[1738350878156,0.03757749,3326.7,3325.7,0.27935156]
[1738350878360,0.8259,3326.8,3325.7,0.27935156]
[1738350878562,0.7671,3326.6,3325.7,0.27935156]
[1738350878737,0.23,3327.0,3325.7,0.27935156]
[1738350878738,0.80468123,3326.5,3325.7,0.27935156]
[1738350878941,0.7671,3326.5,3325.7,0.27935156]
[1738350879140,0.7671,3326.5,3325.2,3.0]
[1738350879341,0.7671,3326.5,3325.3,0.65392963]
[1738350880353,0.801,3326.3,3325.1,0.58882624]
[1738350880667,0.83858625,3326.2,3325.3,0.27956415]
[1738350881231,0.801,3326.2,3325.3,0.27956415]
[1738350881791,0.7678,3326.1,3325.3,0.27956415]
[1738350882068,0.7678,3326.1,3324.9,0.27956415]
[1738350882286,0.8063,3325.8,3324.9,0.27956415]
[1738350882578,0.8063,3325.6,3324.9,0.27956415]
[1738350882741,0.8294,3325.2,3324.9,0.27956415]
[1738350883258,0.8294,3325.2,3324.0,0.27956415]
[1738350883569,0.8294,3325.2,3324.1,0.38188605]
[1738350883742,0.03759534,3325.1,3324.1,0.38188605]
[1738350883947,0.8112,3325.0,3324.1,0.38188605]
[1738350885442,0.8112,3325.0,3324.1,0.6614502]
[1738350886278,0.8112,3325.0,3324.4,3.0]
[1738350886428,0.8112,3325.0,3324.5,0.65392963]
[1738350886772,0.8137,3325.7,3324.8,3.0]
[1738350888272,0.8137,3325.7,3325.2,3.0]
[1738350888567,0.7602,3326.5,3325.6,3.0]
[1738350890979,0.7602,3326.5,3325.2,3.0]
[1738350891183,0.7602,3326.5,3325.3,0.68808979]
[1738350892042,0.82957559,3327.2,3324.7,3.5392963]
[1738350892043,0.86278063,3326.4,3324.7,3.5392963]
[1738350892227,0.86278063,3326.4,3324.8,0.0075]
[1738350892430,0.8252,3326.4,3324.8,0.0075]
[1738350892698,0.8252,3326.4,3324.8,3.0]
[1738350892850,0.8252,3326.4,3324.9,1.25323351]
[1738350894233,0.8252,3326.4,3325.1,3.5392963]
[1738350894427,0.8252,3326.4,3325.2,3.0]
[1738350895893,0.8252,3326.4,3324.9,1.25323351]
[1738350896553,0.79468519,3326.3,3324.9,1.25323351]
[1738350896754,0.79468146,3326.2,3325.0,0.42532335]
[1738350896950,0.79468146,3326.2,3324.6,0.34160161]
[1738350897186,0.79468146,3326.2,3324.3,3.5392963]
[1738350897505,0.7571,3326.2,3324.8,3.0]
[1738350899004,0.7571,3326.2,3324.9,0.626]
[1738350899508,0.7571,3326.2,3325.2,3.0]
[1738350899711,0.7571,3326.2,3325.3,0.65392963]
[1738350900004,0.23,3326.7,3324.5,0.6335]
[1738350900005,0.8295,3326.5,3324.8,3.60483336]
[1738350900209,0.0075,3326.4,3324.8,3.60483336]
[1738350900359,0.80908587,3326.4,3324.4,3.34160161]
[1738350900562,0.0075,3326.2,3324.5,0.6062776]
[1738350900771,0.764,3325.8,3323.9,3.88089791]
[1738350901062,0.764,3325.6,3324.0,1.26408979]
[1738350901262,0.764,3325.6,3324.0,4.26408979]
[1738350903007,0.764,3325.6,3324.4,3.0]
[1738350903204,0.764,3325.6,3324.8,3.0]
[1738350903403,3.00572,3327.0,3324.1,0.89910161]
[1738350903404,0.7816,3326.3,3325.2,3.0]
[1738350903608,0.7816,3326.3,3325.6,3.0]
[1738350905260,0.7816,3326.3,3325.3,0.65392963]
[1738350907212,0.7816,3326.3,3325.5,3.5392963]
[1738350907406,0.7816,3326.3,3325.6,3.0]
[1738350908696,0.7816,3326.3,3325.3,0.99553124]
[1738350909092,0.7816,3326.3,3325.3,0.65392963]
[1738350910067,0.7816,3326.3,3325.1,3.0]
[1738350910763,0.7816,3326.3,3325.1,6.5392963]
[1738350910969,0.7816,3326.3,3325.6,3.0]
[1738350911210,0.7816,3326.3,3326.0,3.0]
[1738350911411,0.7816,3326.3,3324.7,4.1652963]
[1738350911565,0.7816,3326.3,3324.8,0.41652963]
[1738350911920,0.7816,3326.3,3324.9,0.60926689]
[1738350912904,0.7816,3326.3,3324.8,3.41652963]
[1738350913613,0.7816,3326.3,3324.8,0.41652963]
[1738350913928,0.7745,3325.9,3324.8,0.61348142]
[1738350914228,0.7745,3325.7,3324.8,0.61348142]
[1738350914385,0.7745,3325.7,3324.8,3.61348142]
[1738350914581,0.26759084,3325.8,3324.8,0.61348142]
[1738350914802,0.7745,3325.7,3324.8,0.61348142]
[1738350915709,0.03759208,3325.6,3324.8,0.61348142]
[1738350915912,3.57125,3326.4,3324.0,10.58158979]
[1738350915913,0.7939,3325.9,3324.0,1.26408979]
[1738350916116,6.5458263,3326.1,3324.1,0.61480513]
[1738350916117,0.7939,3325.8,3324.1,0.61480513]
[1738350916300,0.7939,3325.8,3324.2,0.18788949]
[1738350916830,0.8166945,3325.7,3324.2,0.18788949]
[1738350917322,0.7791,3325.7,3324.1,0.61480513]
[1738350917824,0.23,3325.6,3324.1,0.61480513]
[1738350918027,0.7727,3325.5,3324.3,3.5392963]
[1738350918227,0.7727,3325.5,3324.4,3.0]
[1738350919728,0.7727,3325.5,3324.1,0.61480513]
[1738350920303,0.7727,3325.5,3324.2,0.36148051]
[1738350920742,0.7727,3325.5,3324.4,3.0]
[1738350921107,0.7727,3325.5,3324.2,0.36148051]
[1738350921108,0.7727,3325.5,3325.1,3.5392963]
[1738350921447,0.7727,3325.5,3325.2,3.0]
[1738350921643,0.7727,3325.5,3325.3,0.65392963]
[1738350922031,0.7905,3326.2,3325.5,3.0]
[1738350922346,0.7905,3326.2,3325.8,3.0]
[1738350923707,0.7684,3327.1,3325.8,11.76]
[1738350924011,0.7684,3327.1,3326.2,3.0]
[1738350924331,0.7684,3327.1,3326.3,0.65392963]
[1738350924533,0.8027,3326.9,3325.9,3.0]
[1738350925052,0.8027,3326.9,3326.2,3.0]
[1738350925207,0.8027,3326.9,3326.6,3.0]
[1738350925759,0.0075,3328.1,3326.6,3.0]
[1738350925760,0.8079,3328.3,3326.6,3.0]
[1738350925908,0.8079,3328.3,3327.4,3.0]
[1738350927510,0.8079,3328.3,3327.7,3.5392963]
[1738350927864,0.8079,3328.3,3327.8,3.0]
[1738350928151,0.005,3328.4,3328.2,3.0]
[1738350929457,0.005,3328.4,3328.3,0.626]
[1738350929642,0.005,3328.4,3328.3,1.191]
[1738350929841,0.005,3328.4,3328.3,1.96402963]
[1738350930384,0.1676493,3330.2,3329.1,0.015]
[1738350930516,0.1676493,3330.2,3329.9,3.5392963]
[1738350930717,0.1676493,3330.2,3330.0,3.0]
[1738350932465,0.8216,3331.3,3330.1,0.565]
[1738350932766,5.9202963,3333.0,3330.1,0.565]
[1738350932767,0.793,3332.3,3331.0,3.5966872]
[1738350933068,0.793,3332.3,3331.3,3.0]
[1738350933269,0.793,3332.3,3331.0,0.5966872]
[1738350933968,0.793,3332.3,3331.3,3.0]
[1738350934154,0.793,3332.3,3331.3,3.65392963]
[1738350935578,0.793,3332.3,3330.8,3.5392963]
[1738350935752,0.793,3332.3,3330.9,3.0]
[1738350936389,0.03751746,3332.2,3330.9,3.0]
[1738350936537,0.793,3332.3,3330.9,3.0]
[1738350937632,0.7919,3332.4,3330.9,3.0]
[1738350938141,0.7919,3332.4,3330.9,3.71381912]
[1738350939179,0.7919,3332.4,3330.7,0.59889487]
[1738350939348,0.8121,3332.4,3330.4,3.5392963]
[1738350939589,0.8121,3332.4,3330.2,0.9825]
[1738350939590,0.8121,3332.4,3330.9,3.0]
[1738350940006,0.8121,3332.4,3331.3,3.0]
[1738350940989,0.8121,3332.4,3330.9,3.0]
[1738350941220,0.8121,3332.4,3331.0,0.7138594]
[1738350941524,0.7929,3332.2,3330.4,3.5392963]
[1738350941708,0.7929,3332.2,3330.9,3.0]
[1738350943322,0.03751901,3332.1,3330.4,3.5392963]
[1738350943493,0.0075,3331.9,3330.0,3.5392963]
[1738350943792,0.8064,3331.5,3330.1,0.35392963]
[1738350943995,0.84392983,3331.5,3330.1,0.35392963]
[1738350944194,0.8064,3331.4,3329.8,0.60188091]
[1738350944395,0.8064,3331.2,3329.6,3.5392963]
[1738350944581,0.8064,3331.2,3330.0,3.5392963]
[1738350944781,0.03752701,3331.1,3329.6,3.5392963]
[1738350945027,0.7707,3331.0,3330.0,3.5392963]
[1738350945331,0.7707,3331.0,3330.1,3.35392963]
[1738350947111,0.7707,3331.0,3330.1,0.35392963]
[1738350947465,0.7707,3331.0,3329.7,3.0]
[1738350948131,0.03753176,3330.9,3329.7,3.0]
[1738350948335,0.7595,3330.9,3329.2,3.5392963]
[1738350948533,0.7595,3330.9,3329.3,3.0]
[1738350948864,0.7595,3330.9,3329.5,0.58630178]
[1738350949562,0.79703592,3330.8,3329.3,3.0]
[1738350949760,0.79703592,3330.8,3329.3,3.65392963]
[1738350949965,0.79703592,3330.8,3328.8,3.5392963]
[1738350949966,0.8024,3330.5,3328.8,3.5392963]
[1738350950162,0.8024,3330.3,3328.8,3.5392963]
[1738350950316,0.8072,3330.1,3328.8,3.5392963]
[1738350950516,0.8447429,3330.0,3328.4,3.5392963]
[1738350950761,0.0075,3329.9,3328.5,0.43123259]
[1738350950981,0.8072,3329.8,3328.9,0.27685967]
[1738350951190,0.84474854,3329.8,3328.9,0.27685967]
[1738350951393,0.8072,3329.8,3328.9,0.27685967]
[1738350952144,0.8332,3329.6,3328.9,0.27685967]
[1738350952339,0.8332,3329.4,3328.9,0.27685967]
[1738350952601,0.7952,3329.2,3327.5,3.5392963]
[1738350952735,0.7952,3328.8,3327.1,3.5392963]
[1738350952939,0.7952,3328.6,3327.1,3.5392963]
[1738350953140,0.7952,3328.4,3327.2,3.0]
[1738350953382,0.7842,3328.3,3327.2,3.0]
[1738350953595,0.7842,3328.3,3327.1,3.5392963]
[1738350953748,0.7842,3328.3,3327.1,3.95213853]
[1738350954450,0.03756263,3328.2,3327.2,3.0]
[1738350954745,0.8231,3328.1,3327.2,3.0]
[1738350955293,0.8231,3328.1,3327.1,0.41284223]
[1738350955437,0.8231,3328.1,3326.7,3.5392963]
[1738350955959,0.8231,3328.1,3327.2,3.0]
[1738350958392,0.8231,3328.1,3327.6,3.0]
[1738350960850,0.8231,3328.1,3328.0,3.0]
[1738350961282,0.9905,3329.1,3328.0,3.0]
[1738350961468,0.7605,3329.1,3328.4,3.0]
[1738350962325,0.7605,3329.1,3328.1,0.65392963]
[1738350963800,0.7605,3329.1,3328.3,3.5392963]
[1738350964702,0.03755062,3329.0,3328.1,0.65392963]
[1738350965000,0.789,3328.9,3328.2,0.36539296]
[1738350966085,0.7955,3329.6,3328.4,3.0]
[1738350968084,0.7955,3329.6,3328.5,0.27799764]
[1738350968888,0.7955,3329.6,3328.8,3.0]
[1738350969089,0.7955,3329.6,3329.2,3.0]
[1738350969677,0.7736,3330.3,3329.6,3.0]
[1738350969836,0.7736,3330.3,3329.7,0.65392963]
[1738350970039,0.7736,3330.3,3329.2,0.60798768]
[1738350970196,0.7736,3330.3,3329.2,3.60798768]
[1738350970836,0.7736,3330.3,3329.3,0.27799764]
[1738350971609,0.7736,3330.3,3329.6,3.0]
[1738350972014,0.7736,3330.3,3329.3,0.27799764]
[1738350972015,0.7736,3330.3,3330.0,3.0]
[1738350972223,0.8236,3330.5,3330.1,0.65392963]
[1738350972953,0.8236,3332.1,3330.4,3.0]
[1738350973106,0.8236,3332.0,3330.7,3.5392963]
[1738350973305,0.8236,3332.0,3330.8,3.0]
[1738350973532,0.8236,3332.1,3330.8,3.0]
[1738350973951,0.8236,3332.1,3330.8,3.93192727]
[1738350974126,0.8236,3332.1,3331.2,3.0]
[1738350974647,0.8236,3332.1,3330.8,0.93192727]
[1738350974648,0.8204,3332.0,3330.8,0.27799764]
[1738350974853,0.8204,3331.6,3330.8,0.27799764]
[1738350975055,3.80878,3330.8,3328.7,3.5392963]
[1738350975255,3.5392963,3330.4,3328.3,3.5392963]
[1738350975565,0.8065,3330.3,3328.7,3.5392963]
[1738350975853,0.03753924,3330.2,3328.7,3.5392963]
[1738350976152,0.8168,3330.1,3328.8,0.7785]
[1738350976306,0.8168,3330.1,3328.9,0.43177963]
[1738350976509,0.03753894,3330.0,3328.9,0.43177963]
[1738350976749,0.8168,3330.1,3328.9,0.43177963]
[1738350977767,0.8129,3329.8,3328.4,0.8155]
[1738350978257,0.8129,3329.8,3328.4,3.8155]
[1738350978454,0.8129,3329.8,3328.3,3.5392963]
[1738350978750,0.8122,3329.6,3328.4,3.0]
[1738350979516,0.8106,3329.7,3328.3,3.5392963]
[1738350979715,0.8106,3329.5,3328.4,0.35392963]
[1738350979915,0.8106,3329.5,3328.4,3.35392963]
[1738350980344,3.00345,3329.5,3328.4,0.35392963]
[1738350980530,0.8106,3329.4,3327.9,3.5392963]
[1738350980934,0.8106,3329.4,3328.0,3.0]
[1738350981463,0.8106,3329.4,3328.4,3.0]
[1738350982177,0.8106,3329.4,3327.9,3.5392963]
[1738350982556,0.7645,3329.2,3328.0,3.0]
[1738350982741,0.7645,3329.2,3328.1,0.65392963]
[1738350983478,0.7645,3329.2,3328.4,3.0]
[1738350984381,0.7962,3329.0,3328.1,0.65392963]
[1738350985182,0.7962,3329.0,3328.4,3.0]
[1738350985336,0.7962,3329.0,3328.7,3.5392963]
[1738350985541,0.7816,3330.7,3328.8,3.35392963]
[1738350985739,0.7816,3330.5,3329.2,3.0]
[1738350985940,0.7717,3330.4,3329.2,3.0]
[1738350986369,0.80924122,3330.3,3328.8,0.35392963]
[1738350986546,0.7717,3330.3,3328.8,0.35392963]
[1738350986745,0.7717,3330.3,3328.9,0.38932259]
[1738350988034,0.8199,3330.2,3329.0,0.27978158]
[1738350988804,0.8199,3330.2,3329.2,3.0]
[1738350989512,0.8199,3330.2,3329.3,0.27978158]
[1738350990809,0.8199,3330.2,3329.6,3.0]
[1738350991160,0.8199,3330.2,3329.4,0.27978158]
[1738350991803,0.8199,3330.2,3329.5,3.0]
[1738350992513,0.8199,3330.2,3329.6,0.27978158]
[1738350994061,0.8199,3330.2,3329.7,0.27978158]
[1738350995103,0.8161,3331.5,3330.2,3.0]
[1738350995986,3.80667849,3331.4,3329.8,0.27978158]
[1738350996176,0.7674,3331.3,3329.8,0.27978158]
[1738350996572,0.7674,3331.3,3329.8,3.27978158]
[1738350996922,0.7674,3331.3,3330.2,3.0]
[1738350998374,0.7674,3331.3,3330.3,0.27978158]
[1738350999324,0.03752714,3331.2,3330.3,0.27978158]
[1738350999621,0.7701,3331.2,3330.3,0.27978158]
[1738351000178,0.7759,3331.1,3330.3,0.27978158]
[1738351000377,0.7759,3331.1,3329.9,0.27978158]
[1738351000628,3.00224,3330.9,3329.9,0.27978158]
[1738351000935,0.81343866,3330.8,3329.9,0.27978158]
[1738351001138,3.81628,3330.6,3329.9,0.27978158]
[1738351001286,0.8138,3330.4,3329.9,0.27978158]
[1738351001628,0.8138,3330.4,3328.5,3.5392963]
[1738351001629,0.8138,3330.3,3329.1,0.27978158]
[1738351002252,3.00282,3330.2,3329.1,0.27978158]
[1738351002528,0.7671,3329.9,3329.1,0.27978158]
[1738351002841,3.00328,3329.7,3329.1,0.27978158]
[1738351003120,0.7866,3329.3,3328.6,0.27978158]
[1738351004687,0.7866,3329.3,3328.7,0.27978158]
[1738351005894,0.7866,3329.3,3328.3,0.27978158]
[1738351006284,0.7866,3329.3,3328.6,3.0]
[1738351006880,0.8218,3330.6,3329.0,3.0]
[1738351007192,0.8218,3330.6,3329.3,3.5392963]
[1738351008564,0.8218,3330.6,3329.1,0.27978158]
[1738351008946,0.8244,3330.4,3329.1,0.27978158]
[1738351009132,0.8244,3330.2,3329.4,0.27978158]
[1738351009339,0.03753966,3330.1,3329.4,0.27978158]
[1738351009544,0.8244,3330.0,3329.4,0.27978158]
[1738351010744,0.8244,3330.0,3329.1,0.27978158]
[1738351012575,0.8244,3330.0,3329.2,0.27978158]
[1738351013530,0.03754152,3329.9,3329.2,0.27978158]
[1738351013744,0.8244,3330.0,3329.2,0.27978158]
[1738351014336,0.8244,3330.0,3329.3,0.27978158]
[1738351015047,0.7898,3329.8,3329.3,0.27978158]
[1738351015578,0.0375435,3329.7,3329.3,0.27978158]
[1738351015759,0.7984,3330.1,3328.7,0.27978158]
[1738351016275,0.7984,3329.9,3328.7,0.27978158]
[1738351016834,0.82494791,3329.8,3328.7,0.27978158]
[1738351017289,0.7874,3329.6,3328.7,0.27978158]
[1738351017464,0.03754987,3329.5,3328.8,0.27978158]
[1738351017771,0.7874,3329.4,3328.8,0.27978158]
[1738351018598,0.03755207,3329.3,3328.8,0.27978158]
[1738351018783,0.8321,3329.3,3328.8,0.27978158]
[1738351019094,0.8321,3329.2,3328.8,0.27978158]
[1738351019878,0.831,3329.0,3328.8,0.27978158]
[1738351020704,4.43754428,3328.9,3328.8,0.27978158]
[1738351020864,1.43355428,3328.9,3328.8,0.27978158]
[1738351021064,1.396,3328.9,3328.8,0.27978158]
[1738351021271,4.43754972,3328.9,3328.8,0.27978158]
[1738351022200,1.396,3328.9,3328.8,0.27978158]
[1738351022355,0.831,3328.9,3328.8,0.27978158]
[1738351022696,1.6175,3328.9,3328.8,0.27978158]
[1738351022873,0.7952,3328.8,3327.4,3.27978158]
[1738351023486,0.83276029,3328.8,3327.4,3.27978158]
[1738351024006,0.7952,3328.8,3327.4,3.27978158]
[1738351024167,0.7952,3328.8,3327.5,0.27978158]
[1738351024705,0.7747,3328.6,3327.5,0.27978158]
[1738351024859,0.03755837,3328.5,3327.5,0.27978158]
[1738351025060,0.7747,3328.6,3327.5,0.27978158]
[1738351026172,0.7747,3328.6,3327.8,3.0]
[1738351026359,0.7747,3328.6,3327.5,0.27978158]
[1738351026563,0.7747,3328.6,3327.6,0.27978158]
[1738351026996,0.7747,3328.6,3327.8,3.7503]
[1738351027200,0.7816,3329.0,3327.8,3.7503]
[1738351027604,0.7816,3329.0,3327.8,3.0]
[1738351027998,0.7816,3329.0,3327.9,0.27978158]
[1738351030094,0.7816,3329.0,3328.2,3.8082]
[1738351030294,0.802,3329.7,3328.6,3.0]
[1738351031066,0.802,3329.7,3328.7,0.27978158]
[1738351031615,0.802,3329.7,3328.9,3.5392963]
[1738351031814,0.802,3330.9,3329.0,3.0]
[1738351031971,0.8095,3330.8,3329.0,3.0]
[1738351032178,0.83415726,3330.7,3329.1,0.27978158]
[1738351032515,0.229,3330.7,3329.5,0.796]
[1738351032934,0.26653417,3330.7,3329.5,0.796]
[1738351033073,0.26653417,3330.7,3329.4,3.0]
[1738351033074,0.8243,3330.6,3329.4,3.0]
[1738351033626,0.8243,3330.6,3329.5,0.27978158]
[1738351034992,0.8243,3330.6,3329.3,4.3317963]
[1738351034993,0.8243,3330.6,3329.8,3.0]
[1738351036705,0.03753425,3330.5,3329.9,0.27978158]
[1738351036940,0.8085,3330.4,3329.9,0.27978158]
[1738351038177,0.8085,3330.4,3329.8,3.0]
[1738351038393,0.7715,3330.7,3329.8,3.0]
[1738351038731,0.7715,3331.1,3330.6,3.0]
[1738351038947,0.7715,3331.5,3330.6,3.8181]
[1738351039149,0.7715,3332.0,3331.4,3.0]
[1738351039345,0.229,3332.2,3331.4,3.0]
[1738351039781,0.7784,3332.3,3331.4,3.0]
[1738351039988,0.04251283,3333.4,3331.8,3.0]
[1738351040190,1.34529459,3333.3,3331.8,3.0]
[1738351040531,0.7515,3333.3,3331.9,0.7884]
[1738351040730,0.8302,3333.1,3331.9,0.27978158]
[1738351041542,0.03750756,3333.0,3331.9,0.27978158]
[1738351041746,0.8065,3332.9,3331.9,0.27978158]
[1738351042395,0.8065,3332.9,3331.7,3.0]
[1738351042546,0.8065,3332.9,3331.8,0.65392963]
[1738351042749,0.8065,3332.9,3332.1,3.0]
[1738351042958,0.7984,3333.3,3332.2,0.83]
[1738351043384,0.7984,3333.3,3332.5,3.0]
[1738351043681,0.005,3333.4,3332.5,3.0]
[1738351044243,0.005,3333.4,3332.8,3.5392963]
[1738351044648,0.005,3333.4,3332.5,3.0]
[1738351044844,0.7782,3333.3,3332.1,3.0]
[1738351045150,3.00044,3332.9,3331.2,4.2962963]
[1738351045349,1.0183,3332.8,3331.2,4.2962963]
[1738351045550,0.7893,3332.8,3331.6,3.5392963]
[1738351045751,0.7893,3332.8,3331.7,3.0]
[1738351045970,0.7893,3332.8,3331.8,0.7922]
[1738351046498,0.005,3333.4,3332.1,3.0]
[1738351046499,0.8177,3333.3,3332.1,3.0]
[1738351047058,0.8177,3333.3,3332.4,3.5392963]
[1738351047259,0.8177,3333.3,3332.5,3.8213]
[1738351047799,0.005,3333.4,3332.5,3.8213]
[1738351047959,0.005,3333.4,3332.9,3.0]
[1738351048160,0.005,3333.4,3333.0,0.7594]
[1738351049720,0.005,3333.4,3333.3,3.0]
[1738351050231,0.005,3333.4,3333.3,3.65392963]
[1738351050528,0.005,3333.4,3333.3,3.0]
[1738351051305,0.005,3333.4,3333.3,3.0075]
[1738351051506,0.005,3333.4,3333.3,4.3398]
[1738351052204,0.1676493,3333.6,3333.5,1.3904]
[1738351052602,0.1676493,3333.6,3333.5,1.3979]
[1738351052800,0.1676493,3333.6,3333.5,2.19161963]
[1738351053219,0.1676493,3333.6,3333.5,0.8329]
[1738351053586,0.1676493,3333.6,3333.5,1.3829]
[1738351054092,0.1676493,3333.6,3333.5,1.3979]
[1738351054305,0.1676493,3333.6,3333.5,0.8404]
[1738351054622,0.1676493,3333.6,3333.5,1.10891998]
[1738351054782,0.1676493,3333.6,3333.5,1.93981248]
[1738351055719,0.66666667,3334.6,3333.5,1.93981248]
[1738351055924,0.81768719,3334.5,3332.8,4.3001963]
[1738351056238,0.7802,3334.1,3332.4,4.90583487]
[1738351056447,0.7802,3334.1,3332.5,3.0]
[1738351056603,0.7802,3334.1,3333.2,3.5392963]
[1738351056951,0.7802,3334.1,3332.9,3.0]
[1738351057162,0.40458555,3334.0,3332.9,3.0]
[1738351057306,0.40458555,3334.0,3332.4,4.3001963]
[1738351057307,0.77,3333.8,3332.4,4.3001963]
[1738351057627,0.03750291,3333.7,3332.5,3.0]
[1738351057946,0.77,3333.6,3332.4,3.5392963]
[1738351058149,3.03723292,3333.7,3331.1,0.29592298]
[1738351058150,0.782,3333.4,3332.0,3.5392963]
[1738351058335,1.3620109,3333.3,3331.7,0.7979]
[1738351058533,0.43694509,3333.2,3332.1,3.0]
[1738351058750,0.7745,3333.3,3332.1,3.0]
[1738351058940,0.82950883,3333.2,3331.7,4.23161963]
[1738351059102,3.82969883,3333.2,3331.7,1.23161963]
[1738351059309,0.792,3333.2,3331.7,1.23161963]
[1738351059510,0.792,3333.2,3331.7,1.83533498]
[1738351059811,0.792,3333.2,3331.8,0.53746313]
[1738351060033,0.792,3333.2,3332.1,3.0]
[1738351060977,0.792,3333.2,3332.2,0.27749524]
[1738351062258,0.7584,3333.0,3332.2,0.27749524]
[1738351062441,0.7584,3332.8,3332.2,0.27749524]
[1738351063029,0.7584,3332.8,3331.8,0.27749524]
[1738351063230,0.7584,3332.8,3331.8,1.01954593]
[1738351064377,0.7584,3332.8,3331.8,0.27749524]
[1738351064544,0.7904,3332.7,3331.8,0.27749524]
[1738351065484,0.7904,3332.7,3331.3,3.0]
[1738351065837,0.7904,3332.7,3331.7,3.0]
[1738351066997,0.7904,3332.7,3331.8,0.7627]
[1738351067301,0.7904,3332.7,3331.4,0.0075]
[1738351067302,0.03750766,3332.6,3331.4,0.7627]
[1738351067434,0.7904,3332.7,3331.4,0.7627]
[1738351067651,0.7904,3332.7,3331.7,3.0]
[1738351067861,0.7804,3333.3,3332.1,3.0]
[1738351068062,0.7804,3333.3,3332.2,1.41662963]
[1738351068288,0.8166,3333.7,3332.5,3.0]
[1738351069155,0.8166,3333.7,3332.5,3.588396]
[1738351069484,0.8166,3333.7,3332.4,0.60202656]
[1738351069694,0.8166,3333.7,3332.5,3.0]
[1738351069891,0.8166,3333.7,3332.8,4.3336963]
[1738351070077,0.7904,3334.2,3332.9,3.0]
[1738351070457,0.7812,3334.3,3332.6,0.71413229]
[1738351070759,0.7812,3334.0,3332.4,0.7944]
[1738351071003,0.8187015,3334.0,3332.4,0.7944]
[1738351071722,0.7812,3334.0,3332.4,0.7944]
[1738351071882,0.7812,3334.0,3332.5,3.0]
[1738351073120,0.7874,3333.9,3332.5,3.0]
[1738351073325,0.7874,3333.9,3332.6,0.73336963]
[1738351075010,0.7874,3333.9,3333.0,0.565]
[1738351076027,0.7874,3333.9,3333.1,0.7609]
[1738351076225,0.7874,3333.9,3332.9,3.0]
[1738351076412,0.7874,3333.9,3332.7,0.7609]
[1738351076620,0.7874,3333.9,3332.8,4.1510504]
[1738351076929,0.7874,3333.9,3333.0,0.015]
[1738351077089,0.792,3334.5,3333.3,3.015]
[1738351077539,0.792,3334.5,3333.4,0.59487899]
[1738351078042,0.792,3334.3,3332.7,0.7508]
[1738351078340,0.792,3334.3,3332.8,0.60100186]
[1738351078642,1.3684,3334.2,3332.4,0.59277801]
[1738351078790,1.3684,3334.2,3332.0,4.3039963]
[1738351078791,0.8109,3334.0,3332.0,4.3039963]
[1738351078991,0.84840144,3334.0,3332.1,3.0075]
[1738351079194,0.8109,3334.0,3332.2,0.60148209]
[1738351079404,1.24591963,3333.9,3332.3,0.015]
[1738351079607,0.791,3333.8,3332.3,0.565]
[1738351080294,0.82849843,3333.8,3332.2,0.60148209]
[1738351080494,0.791,3333.8,3332.2,0.60148209]
[1738351081535,0.7563,3333.6,3332.2,0.60148209]
[1738351081834,0.7563,3333.6,3332.3,0.36014821]
[1738351082003,0.7863,3333.4,3332.3,0.36014821]
[1738351082329,0.7863,3333.4,3332.4,0.00558492]
[1738351082992,0.03750418,3333.3,3332.4,0.00558492]
[1738351083193,3.00017,3333.2,3332.4,0.00558492]
[1738351083494,0.84241138,3333.1,3332.4,0.00558492]
[1738351083695,0.8049,3333.1,3332.4,0.00558492]
[1738351085239,0.03750386,3333.0,3332.4,0.00558492]
[1738351085442,0.7616,3333.0,3332.4,0.00558492]
[1738351087551,0.4859,3332.1,3330.2,2.2888527]
[1738351087846,0.2,3332.2,3329.5,0.1]
[1738351087847,0.4859,3330.2,3329.8,2.2888527]
[1738351088001,0.4859,3329.9,3329.8,2.2888527]
[1738351088205,2.60508017,3329.9,3329.8,2.2888527]
[1738351088408,0.4859,3329.9,3329.8,2.2888527]
[1738351088839,3.48899,3329.9,3329.8,2.2888527]
[1738351089219,3.48899,3329.9,3329.8,1.4555527]
[1738351089439,3.48945089,3329.9,3329.8,0.1363527]
[1738351089637,8.03506439,3329.9,3329.8,0.1363527]
[1738351089962,6.00327,3329.7,3329.6,3.59874158]